fUST/lending_fUST_20241229
["ID","MTS","AMOUNT","RATE_DAILY","PERIOD"]
[347059480,1735487434878,-500.0,9.186e-05,2]
[347059482,1735487434887,-500.0,9.186e-05,2]
[347059493,1735487434971,-500.0,9.186e-05,2]
[347059495,1735487434981,-500.0,9.186e-05,2]
[347059497,1735487434990,-500.0,9.186e-05,2]
[347059498,1735487434999,-500.0,9.186e-05,2]
[347059500,1735487435009,-500.0,9.186e-05,2]
[347059503,1735487435019,-502.06056801,9.186e-05,2]
[347059505,1735487435029,-500.0,9.186e-05,2]
[347059507,1735487435038,-1091.14,9.186e-05,2]
[347059509,1735487435047,-500.0,9.186e-05,2]
[347059511,1735487435056,-500.0,9.186e-05,2]
[347059513,1735487435066,-505.98153272,9.186e-05,2]
[347059515,1735487435075,-500.96517143,9.186e-05,2]
[347059517,1735487435084,-500.0,9.186e-05,2]
[347059519,1735487435093,-500.0,9.186e-05,2]
[347059520,1735487435103,-506.08219354,9.186e-05,2]
[347059522,1735487435114,-247.13254516,9.186e-05,2]
[347059524,1735487435123,-502.29574935,9.186e-05,2]
[347059526,1735487435132,-500.0,9.186e-05,2]
[347059528,1735487435141,-503.34171369,9.186e-05,2]
[347059530,1735487435150,-615.29218176,9.186e-05,2]
[347059532,1735487435159,-500.0,9.186e-05,2]
[347059534,1735487435168,-500.0,9.186e-05,2]
[347059536,1735487435177,-500.0,9.186e-05,2]
[347059538,1735487435187,-500.0,9.186e-05,2]
[347059540,1735487435197,-500.0,9.186e-05,2]
[347059542,1735487435207,-622.09,9.186e-05,2]
[347059544,1735487435216,-500.0,9.186e-05,2]
[347059546,1735487435225,-503.3538333,9.186e-05,2]
[347059548,1735487435234,-502.91283543,9.186e-05,2]
[347059550,1735487435243,-501.46235216,9.186e-05,2]
[347059552,1735487435253,-500.0,9.186e-05,2]
[347059554,1735487435263,-500.0,9.186e-05,2]
[347059556,1735487435272,-500.0,9.186e-05,2]
[347059559,1735487435281,-666.06,9.186e-05,2]
[347059561,1735487435291,-502.17580269,9.186e-05,2]
[347059563,1735487435300,-188.0,9.186e-05,2]
[347059565,1735487435310,-443.22492159,9.186e-05,2]
[347059567,1735487435319,-500.0,9.186e-05,2]
[347059569,1735487435329,-500.0,9.186e-05,2]
[347059571,1735487435338,-500.0,9.186e-05,2]
[347059573,1735487435347,-500.0,9.186e-05,2]
[347059575,1735487435356,-500.0,9.186e-05,2]
[347059576,1735487435365,-500.0,9.186e-05,2]
[347059577,1735487435374,-500.0,9.186e-05,2]
[347059578,1735487435383,-513.11205663,9.186e-05,2]
[347059579,1735487435392,-500.0,9.186e-05,2]
[347059580,1735487435401,-502.57936197,9.186e-05,2]
[347059581,1735487435411,-500.0,9.186e-05,2]
[347059582,1735487435420,-500.0,9.186e-05,2]
[347059583,1735487435429,-502.31241144,9.186e-05,2]
[347059584,1735487435439,-500.47401218,9.186e-05,2]
[347059585,1735487435448,-482.47538249,9.186e-05,2]
[347059586,1735487435457,-500.79078365,9.186e-05,2]
[347059587,1735487435467,-500.0,9.186e-05,2]
[347059588,1735487435476,-500.0,9.186e-05,2]
[347059589,1735487435485,-500.0,9.186e-05,2]
[347059590,1735487435495,-500.0,9.186e-05,2]
[347059591,1735487435505,-500.0,9.186e-05,2]
[347059592,1735487435515,-500.0,9.186e-05,2]
[347059593,1735487435527,-222.95877764,9.186e-05,2]
[347059594,1735487435537,-500.0,9.186e-05,2]
[347059595,1735487435547,-500.0,9.186e-05,2]
[347059596,1735487435556,-502.39575312,9.186e-05,2]
[347059597,1735487435565,-500.0,9.186e-05,2]
[347059599,1735487435575,-501.55296053,9.186e-05,2]
[347059601,1735487435584,-504.96294223,9.187e-05,2]
[347059603,1735487435594,-498.7377758,9.187e-05,2]
[347059605,1735487435604,-481.8794124,9.187e-05,2]
[347059607,1735487435613,-500.0,9.187e-05,2]
[347059609,1735487435622,-332.51530406,9.187e-05,2]
[347059611,1735487435632,-500.0,9.187e-05,2]
[347059613,1735487435641,-611.10010535,9.187e-05,2]
[347059615,1735487435651,-500.57307542,9.187e-05,2]
[347059617,1735487435661,-500.0,9.187e-05,2]
[347059619,1735487435670,-500.0,9.187e-05,2]
[347059621,1735487435680,-500.0,9.187e-05,2]
[347059623,1735487435689,-500.0,9.187e-05,2]
[347059625,1735487435699,-500.34082409,9.187e-05,2]
[347059627,1735487435708,-500.0,9.187e-05,2]
[347059629,1735487435717,-500.0,9.187e-05,2]
[347059631,1735487435727,-500.0,9.187e-05,2]
[347059633,1735487435736,-500.0,9.187e-05,2]
[347059635,1735487435746,-500.0,9.187e-05,2]
[347059637,1735487435756,-500.0,9.187e-05,2]
[347059639,1735487435765,-500.0,9.187e-05,2]
[347059641,1735487435774,-500.91172833,9.187e-05,2]
[347059643,1735487435783,-500.92611128,9.187e-05,2]
[347059645,1735487435794,-500.0,9.187e-05,2]
[347059647,1735487435804,-500.0,9.187e-05,2]
[347059649,1735487435813,-500.79908232,9.187e-05,2]
[347059651,1735487435823,-498.76556102,9.187e-05,2]
[347059653,1735487435832,-500.0,9.187e-05,2]
[347059655,1735487435848,-500.0,9.187e-05,2]
[347059658,1735487435857,-500.0,9.187e-05,2]
[347059660,1735487435867,-500.34216792,9.187e-05,2]
[347059662,1735487435877,-500.0,9.187e-05,2]
[347059664,1735487435889,-500.0,9.187e-05,2]
[347059666,1735487435898,-500.0,9.187e-05,2]
[347059668,1735487435907,-500.0,9.187e-05,2]
[347059670,1735487435916,-500.0,9.187e-05,2]
[347059672,1735487435926,-500.0,9.188e-05,2]
[347059674,1735487435935,-500.0,9.188e-05,2]
[347059676,1735487435944,-500.0,9.188e-05,2]
[347059678,1735487435953,-500.0,9.188e-05,2]
[347059680,1735487435962,-500.0,9.188e-05,2]
[347059682,1735487435972,-500.0,9.188e-05,2]
[347059684,1735487435981,-500.0,9.188e-05,2]
[347059686,1735487435990,-500.0,9.188e-05,2]
[347059688,1735487435998,-500.0,9.188e-05,2]
[347059690,1735487436013,-500.0,9.188e-05,2]
[347059692,1735487436023,-500.0,9.188e-05,2]
[347059694,1735487436032,-500.0,9.188e-05,2]
[347059696,1735487436041,-500.0,9.188e-05,2]
[347059698,1735487436051,-504.24007526,9.188e-05,2]
[347059700,1735487436060,-500.0,9.188e-05,2]
[347059702,1735487436070,-500.0,9.189e-05,2]
[347059704,1735487436079,-603.86,9.189e-05,2]
[347059706,1735487436088,-581.10394309,9.189e-05,2]
[347059707,1735487436098,-500.0,9.189e-05,2]
[347059709,1735487436107,-500.0,9.189e-05,2]
[347059711,1735487436116,-683.8,9.189e-05,2]
[347059713,1735487436125,-500.0,9.189e-05,2]
[347059715,1735487436134,-500.0,9.189e-05,2]
[347059717,1735487436143,-500.0,9.189e-05,2]
[347059719,1735487436153,-500.0,9.189e-05,2]
[347059721,1735487436162,-500.0,9.189e-05,2]
[347059724,1735487436171,-500.0,9.189e-05,2]
[347059726,1735487436180,-500.0,9.189e-05,2]
[347059727,1735487436189,-683.8,9.191e-05,2]
[347059729,1735487436199,-683.8,9.192e-05,2]
[347059731,1735487436208,-683.8,9.192e-05,2]
[347059732,1735487436217,-683.8,9.192e-05,2]
[347059734,1735487436227,-683.8,9.192e-05,2]
[347059736,1735487436236,-683.8,9.192e-05,2]
[347059738,1735487436245,-4279.71,9.193e-05,2]
[347059740,1735487436258,-683.8,9.193e-05,2]
[347059742,1735487436267,-683.8,9.193e-05,2]
[347059744,1735487436277,-500.0,9.193e-05,2]
[347059746,1735487436286,-500.0,9.193e-05,2]
[347059748,1735487436295,-500.0,9.193e-05,2]
[347059750,1735487436303,-5154.91,9.193e-05,2]
[347059752,1735487436313,-683.8,9.194e-05,2]
[347059753,1735487436322,-683.8,9.194e-05,2]
[347059755,1735487436331,-683.8,9.195e-05,2]
[347059757,1735487436341,-683.8,9.195e-05,2]
[347059759,1735487436350,-683.8,9.195e-05,2]
[347059761,1735487436359,-683.8,9.198e-05,2]
[347059763,1735487436368,-683.8,9.228e-05,2]
[347059765,1735487436378,-683.8,9.23e-05,2]
[347059767,1735487436387,-8335.0,9.277e-05,2]
[347059769,1735487436396,-8333.0,9.277e-05,2]
[347059771,1735487436406,-8333.0,9.277e-05,2]
[347059773,1735487436415,-8333.0,9.277e-05,2]
[347059775,1735487436424,-8333.0,9.277e-05,2]
[347059777,1735487436434,-8333.0,9.277e-05,2]
[347059779,1735487436443,-328.49014239,9.433e-05,2]
[347059781,1735487436452,-500.0,9.433e-05,2]
[347059783,1735487436462,-500.0,9.458e-05,2]
[347059785,1735487436471,-500.0,9.458e-05,2]
[347059787,1735487436481,-505.34516855,9.458e-05,2]
[347059789,1735487436490,-473.58537191,9.458e-05,2]
[347059791,1735487436499,-500.0,9.458e-05,2]
[347059793,1735487436510,-500.0,9.458e-05,2]
[347059795,1735487436519,-502.48784388,9.458e-05,2]
[347059797,1735487436528,-500.0,9.458e-05,2]
[347059799,1735487436538,-500.0,9.458e-05,2]
[347059801,1735487436547,-500.0,9.458e-05,2]
[347059803,1735487436557,-520.26783337,9.458e-05,2]
[347059812,1735487436566,-500.0,9.458e-05,2]
[347059814,1735487436647,-500.0,9.458e-05,2]
[347059816,1735487436657,-500.0,9.458e-05,2]
[347059818,1735487436667,-503.0716139,9.458e-05,2]
[347059820,1735487436676,-500.0,9.458e-05,2]
[347059822,1735487436686,-500.0,9.458e-05,2]
[347059824,1735487436695,-500.0,9.458e-05,2]
[347059826,1735487436705,-1700.3,9.458e-05,2]
[347059828,1735487436714,-500.0,9.458e-05,2]
[347059830,1735487436724,-533.5,9.459e-05,2]
[347059832,1735487436734,-500.0,9.459e-05,2]
[347059834,1735487436743,-500.0,9.459e-05,2]
[347059836,1735487436754,-500.0,9.459e-05,2]
[347059838,1735487436764,-500.0,9.459e-05,2]
[347059840,1735487436775,-500.0,9.459e-05,2]
[347059842,1735487436785,-500.0,9.459e-05,2]
[347059844,1735487436795,-534.62,9.459e-05,2]
[347059846,1735487436805,-500.0,9.459e-05,2]
[347059848,1735487436814,-890.4,9.459e-05,2]
[347059850,1735487436824,-500.0,9.459e-05,2]
[347059852,1735487436834,-500.0,9.459e-05,2]
[347059854,1735487436847,-500.0,9.459e-05,2]
[347059856,1735487436856,-500.0,9.459e-05,2]
[347059858,1735487436865,-500.0,9.459e-05,2]
[347059860,1735487436875,-500.0,9.459e-05,2]
[347059862,1735487436884,-500.0,9.459e-05,2]
[347059864,1735487436894,-500.0,9.459e-05,2]
[347059866,1735487436904,-500.0,9.459e-05,2]
[347059868,1735487436913,-573.43,9.459e-05,2]
[347059870,1735487436923,-581.53,9.459e-05,2]
[347059872,1735487436932,-1429.07,9.459e-05,2]
[347059874,1735487436941,-500.0,9.459e-05,2]
[347059876,1735487436951,-500.0,9.459e-05,2]
[347059878,1735487436960,-612.02,9.459e-05,2]
[347059880,1735487436969,-500.0,9.459e-05,2]
[347059882,1735487436978,-2376.92,9.459e-05,2]
[347059884,1735487436987,-500.0,9.459e-05,2]
[347059886,1735487436997,-867.42,9.459e-05,2]
[347059888,1735487437008,-923.34,9.459e-05,2]
[347059890,1735487437018,-500.0,9.459e-05,2]
[347059892,1735487437027,-500.0,9.459e-05,2]
[347059894,1735487437036,-745.67,9.459e-05,2]
[347059896,1735487437045,-20372.6,9.459e-05,2]
[347059898,1735487437055,-500.0,9.459e-05,2]
[347059900,1735487437065,-500.0,9.459e-05,2]
[347059902,1735487437076,-500.0,9.459e-05,2]
[347059904,1735487437086,-500.0,9.459e-05,2]
[347059906,1735487437095,-500.0,9.459e-05,2]
[347059908,1735487437104,-573.96,9.459e-05,2]
[347059910,1735487437114,-1419.87,9.459e-05,2]
[347059912,1735487437124,-365.62,9.459e-05,2]
[347059914,1735487437135,-712.1,9.459e-05,2]
[347059916,1735487437145,-818.89,9.459e-05,2]
[347059918,1735487437157,-500.0,9.459e-05,2]
[347059920,1735487437169,-500.0,9.459e-05,2]
[347059922,1735487437181,-500.0,9.459e-05,2]
[347059925,1735487437190,-512.05901966,9.46e-05,2]
[347059926,1735487437199,-500.0,9.46e-05,2]
[347059928,1735487437209,-500.0,9.46e-05,2]
[347059930,1735487437218,-237.12840474,9.46e-05,2]
[347059932,1735487437227,-500.0,9.46e-05,2]
[347059934,1735487437236,-500.0,9.46e-05,2]
[347059936,1735487437245,-499.0,9.46e-05,2]
[347059938,1735487437254,-500.0,9.46e-05,2]
[347059940,1735487437263,-500.0,9.46e-05,2]
[347059942,1735487437272,-500.0,9.46e-05,2]
[347059944,1735487437282,-500.0,9.46e-05,2]
[347059946,1735487437292,-500.0,9.46e-05,2]
[347059948,1735487437302,-500.0,9.46e-05,2]
[347059950,1735487437311,-500.0,9.46e-05,2]
[347059952,1735487437321,-500.0,9.46e-05,2]
[347059955,1735487437331,-500.0,9.46e-05,2]
[347059958,1735487437340,-500.0,9.46e-05,2]
[347059960,1735487437349,-500.0,9.46e-05,2]
[347059962,1735487437358,-500.0,9.46e-05,2]
[347059964,1735487437368,-500.0,9.46e-05,2]
[347059966,1735487437378,-500.0,9.46e-05,2]
[347059968,1735487437388,-500.0,9.46e-05,2]
[347059970,1735487437397,-500.0,9.46e-05,2]
[347059972,1735487437406,-500.0,9.46e-05,2]
[347059974,1735487437416,-502.27168027,9.46e-05,2]
[347059976,1735487437425,-502.69311935,9.46e-05,2]
[347059978,1735487437435,-500.0,9.46e-05,2]
[347059980,1735487437444,-500.0,9.46e-05,2]
[347059982,1735487437454,-500.0,9.46e-05,2]
[347059984,1735487437463,-500.0,9.46e-05,2]
[347059986,1735487437473,-389.24591008,9.46e-05,2]
[347059988,1735487437482,-500.0,9.46e-05,2]
[347059990,1735487437491,-500.0,9.46e-05,2]
[347059992,1735487437501,-500.0,9.46e-05,2]
[347059994,1735487437511,-500.0,9.46e-05,2]
[347059996,1735487437520,-500.0,9.46e-05,2]
[347059998,1735487437530,-607.89507429,9.46e-05,2]
[347060000,1735487437539,-503.40711213,9.46e-05,2]
[347060002,1735487437548,-500.0,9.46e-05,2]
[347060004,1735487437557,-500.0,9.46e-05,2]
[347060006,1735487437567,-533.72374395,9.46e-05,2]
[347060008,1735487437576,-500.0,9.46e-05,2]
[347060010,1735487437585,-500.0,9.46e-05,2]
[347060012,1735487437595,-500.0,9.46e-05,2]
[347060014,1735487437604,-500.0,9.46e-05,2]
[347060016,1735487437614,-511.71684796,9.46e-05,2]
[347060018,1735487437624,-504.54930697,9.46e-05,2]
[347060020,1735487437633,-467.49037091,9.46e-05,2]
[347060022,1735487437642,-500.0,9.46e-05,2]
[347060024,1735487437652,-2108.07,9.46e-05,2]
[347060026,1735487437661,-792.09,9.46e-05,2]
[347060028,1735487437671,-500.0,9.46e-05,2]
[347060030,1735487437680,-500.0,9.46e-05,2]
[347060032,1735487437690,-500.0,9.46e-05,2]
[347060034,1735487437699,-245.96079676,9.46e-05,2]
[347060036,1735487437708,-503.21282905,9.46e-05,2]
[347060038,1735487437717,-500.0,9.46e-05,2]
[347060040,1735487437726,-500.0,9.46e-05,2]
[347060041,1735487437736,-500.0,9.46e-05,2]
[347060044,1735487437746,-502.72180977,9.46e-05,2]
[347060046,1735487437756,-500.0,9.46e-05,2]
[347060047,1735487437765,-500.0,9.46e-05,2]
[347060049,1735487437774,-503.98546479,9.46e-05,2]
[347060051,1735487437783,-500.0,9.46e-05,2]
[347060053,1735487437792,-500.0,9.46e-05,2]
[347060055,1735487437802,-500.0,9.46e-05,2]
[347060057,1735487437811,-501.70537176,9.46e-05,2]
[347060060,1735487437821,-502.18242219,9.46e-05,2]
[347060062,1735487437830,-508.18,9.46e-05,2]
[347060064,1735487437844,-500.0,9.46e-05,2]
[347060066,1735487437854,-500.85173509,9.46e-05,2]
[347060068,1735487437863,-500.0,9.46e-05,2]
[347060070,1735487437872,-593.39,9.46e-05,2]
[347060072,1735487437883,-500.0,9.46e-05,2]
[347060074,1735487437893,-500.0,9.46e-05,2]
[347060076,1735487437903,-500.0,9.46e-05,2]
[347060078,1735487437912,-505.36151024,9.46e-05,2]
[347060080,1735487437921,-503.33978516,9.46e-05,2]
[347060082,1735487437931,-500.0,9.46e-05,2]
[347060084,1735487437940,-500.0,9.46e-05,2]
[347060086,1735487437950,-500.0,9.46e-05,2]
[347060088,1735487437959,-583.8,9.46e-05,2]
[347060089,1735487437968,-500.0,9.46e-05,2]
[347060091,1735487437978,-500.0,9.46e-05,2]
[347060094,1735487437987,-500.0,9.46e-05,2]
[347060096,1735487437997,-500.0,9.46e-05,2]
[347060098,1735487438007,-1091.14,9.46e-05,2]
[347060100,1735487438016,-383.26643727,9.46e-05,2]
[347060101,1735487438026,-500.0,9.46e-05,2]
[347060104,1735487438036,-501.29434646,9.46e-05,2]
[347060106,1735487438046,-500.0,9.46e-05,2]
[347060107,1735487438055,-500.0,9.46e-05,2]
[347060109,1735487438064,-500.0,9.46e-05,2]
[347060111,1735487438073,-500.0,9.46e-05,2]
[347060113,1735487438085,-500.0,9.46e-05,2]
[347060116,1735487438094,-500.0,9.46e-05,2]
[347060117,1735487438103,-622.09,9.46e-05,2]
[347060120,1735487438113,-500.0,9.46e-05,2]
[347060122,1735487438122,-500.0,9.46e-05,2]
[347060124,1735487438132,-500.0,9.46e-05,2]
[347060134,1735487438208,-500.0,9.46e-05,2]
[347060136,1735487438218,-666.06,9.46e-05,2]
[347060138,1735487438227,-500.0,9.46e-05,2]
[347060140,1735487438236,-502.32648643,9.46e-05,2]
[347060141,1735487438245,-502.06113452,9.46e-05,2]
[347060142,1735487438255,-514.36354303,9.46e-05,2]
[347060143,1735487438264,-501.70776864,9.46e-05,2]
[347060144,1735487438273,-500.0,9.46e-05,2]
[347060145,1735487438283,-500.0,9.46e-05,2]
[347060146,1735487438292,-500.0,9.46e-05,2]
[347060147,1735487438302,-500.0,9.46e-05,2]
[347060148,1735487438311,-502.20115285,9.46e-05,2]
[347060149,1735487438321,-500.0,9.46e-05,2]
[347060150,1735487438331,-500.0,9.46e-05,2]
[347060151,1735487438340,-500.0,9.46e-05,2]
[347060152,1735487438350,-500.0,9.46e-05,2]
[347060153,1735487438359,-500.84389074,9.461e-05,2]
[347060154,1735487438368,-500.0,9.461e-05,2]
[347060155,1735487438377,-500.0,9.461e-05,2]
[347060156,1735487438387,-500.0,9.461e-05,2]
[347060157,1735487438396,-500.0,9.461e-05,2]
[347060158,1735487438406,-500.0,9.461e-05,2]
[347060159,1735487438415,-500.0,9.461e-05,2]
[347060160,1735487438425,-500.0,9.461e-05,2]
[347060161,1735487438435,-500.0,9.461e-05,2]
[347060162,1735487438444,-500.0,9.461e-05,2]
[347060163,1735487438454,-502.48748472,9.461e-05,2]
[347060164,1735487438463,-500.0,9.461e-05,2]
[347060165,1735487438472,-501.539267,9.461e-05,2]
[347060166,1735487438482,-501.74077293,9.461e-05,2]
[347060167,1735487438491,-322.2513371,9.461e-05,2]
[347060168,1735487438500,-500.0,9.461e-05,2]
[347060169,1735487438511,-500.0,9.461e-05,2]
[347060170,1735487438520,-500.0,9.461e-05,2]
[347060171,1735487438530,-500.0,9.461e-05,2]
[347060172,1735487438539,-500.0,9.462e-05,2]
[347060173,1735487438549,-500.0,9.462e-05,2]
[347060174,1735487438558,-500.0,9.462e-05,2]
[347060175,1735487438568,-500.0,9.462e-05,2]
[347060176,1735487438577,-500.0,9.462e-05,2]
[347060177,1735487438587,-500.0,9.462e-05,2]
[347060178,1735487438596,-603.86,9.463e-05,2]
[347060179,1735487438606,-281.44,9.463e-05,2]
[347060180,1735487438615,-500.0,9.463e-05,2]
[347060181,1735487438625,-683.8,9.465e-05,2]
[347060182,1735487438634,-683.8,9.466e-05,2]
[347060183,1735487438643,-683.8,9.466e-05,2]
[347060184,1735487438652,-683.8,9.466e-05,2]
[347060185,1735487438662,-683.8,9.466e-05,2]
[347060186,1735487438671,-683.8,9.466e-05,2]
[347060187,1735487438680,-684.03227501,9.466e-05,2]
[347060188,1735487438690,-4279.71,9.467e-05,2]
[347060189,1735487438699,-500.0,9.467e-05,2]
[347060190,1735487438708,-5154.91,9.467e-05,2]
[347060191,1735487438718,-500.0,9.732e-05,2]
[347060192,1735487438728,-387.7520836,9.732e-05,2]
[347060193,1735487438737,-500.0,9.732e-05,2]
[347060194,1735487438746,-552.78566226,9.732e-05,2]
[347060195,1735487438757,-500.0,9.732e-05,2]
[347060196,1735487438766,-500.0,9.732e-05,2]
[347060197,1735487438776,-500.0,9.732e-05,2]
[347060198,1735487438785,-500.0,9.732e-05,2]
[347060199,1735487438794,-500.0,9.732e-05,2]
[347060200,1735487438804,-504.16517763,9.732e-05,2]
[347060201,1735487438814,-504.07361029,9.732e-05,2]
[347060202,1735487438823,-437.91978183,9.732e-05,2]
[347060203,1735487438832,-1700.3,9.732e-05,2]
[347060204,1735487438843,-500.0,9.732e-05,2]
[347060205,1735487438852,-533.5,9.733e-05,2]
[347060206,1735487438862,-500.0,9.733e-05,2]
[347060207,1735487438871,-243.23740449,9.733e-05,2]
[347060208,1735487438881,-500.0,9.733e-05,2]
[347060209,1735487438890,-500.0,9.733e-05,2]
[347060210,1735487438900,-500.0,9.733e-05,2]
[347060211,1735487438910,-500.0,9.733e-05,2]
[347060212,1735487438920,-534.62,9.733e-05,2]
[347060213,1735487438929,-500.0,9.733e-05,2]
[347060214,1735487438939,-890.4,9.733e-05,2]
[347060215,1735487438949,-500.0,9.733e-05,2]
[347060216,1735487438959,-500.0,9.733e-05,2]
[347060217,1735487438968,-500.0,9.733e-05,2]
[347060218,1735487438978,-500.0,9.733e-05,2]
[347060220,1735487438987,-500.0,9.733e-05,2]
[347060221,1735487438996,-500.0,9.733e-05,2]
[347060223,1735487439007,-500.0,9.733e-05,2]
[347060224,1735487439017,-500.0,9.733e-05,2]
[347060225,1735487439028,-500.0,9.733e-05,2]
[347060226,1735487439038,-573.43,9.733e-05,2]
[347060227,1735487439047,-581.53,9.733e-05,2]
[347060228,1735487439056,-1429.07,9.733e-05,2]
[347060229,1735487439066,-500.0,9.733e-05,2]
[347060230,1735487439075,-500.0,9.733e-05,2]
[347060231,1735487439085,-612.02,9.733e-05,2]
[347060232,1735487439094,-500.0,9.733e-05,2]
[347060233,1735487439105,-2376.92,9.733e-05,2]
[347060234,1735487439115,-500.0,9.733e-05,2]
[347060235,1735487439125,-867.42,9.733e-05,2]
[347060236,1735487439135,-923.34,9.733e-05,2]
[347060237,1735487439145,-326.68499858,9.733e-05,2]
[347060238,1735487439155,-500.0,9.733e-05,2]
[347060239,1735487439164,-745.67,9.733e-05,2]
[347060240,1735487439174,-20372.6,9.733e-05,2]
[347060241,1735487439184,-349.05638344,9.733e-05,2]
[347060242,1735487439194,-500.0,9.733e-05,2]
[347060243,1735487439204,-500.0,9.733e-05,2]
[347060244,1735487439214,-500.0,9.733e-05,2]
[347060245,1735487439223,-500.0,9.733e-05,2]
[347060246,1735487439233,-573.96,9.733e-05,2]
[347060247,1735487439243,-1419.87,9.733e-05,2]
[347060248,1735487439253,-712.1,9.733e-05,2]
[347060249,1735487439262,-818.89,9.733e-05,2]
[347060250,1735487439276,-500.0,9.733e-05,2]
[347060251,1735487439285,-278.10768128,9.733e-05,2]
[347060252,1735487439294,-500.0,9.733e-05,2]
[347060253,1735487439304,-500.0,9.733e-05,2]
[347060254,1735487439314,-500.0,9.734e-05,2]
[347060255,1735487439324,-500.0,9.734e-05,2]
[347060256,1735487439334,-500.0,9.734e-05,2]
[347060257,1735487439344,-500.0,9.734e-05,2]
[347060258,1735487439354,-500.0,9.734e-05,2]
[347060259,1735487439363,-500.0,9.734e-05,2]
[347060260,1735487439373,-500.0,9.734e-05,2]
[347060261,1735487439383,-500.0,9.734e-05,2]
[347060262,1735487439395,-269.44979682,9.734e-05,2]
[347060263,1735487439404,-315.6867697,9.734e-05,2]
[347060264,1735487439415,-500.0,9.734e-05,2]
[347060265,1735487439426,-500.0,9.734e-05,2]
[347060266,1735487439435,-500.0,9.734e-05,2]
[347060267,1735487439445,-500.0,9.734e-05,2]
[347060268,1735487439455,-504.84617504,9.734e-05,2]
[347060269,1735487439466,-163.69265319,9.734e-05,2]
[347060270,1735487439475,-500.0,9.734e-05,2]
[347060271,1735487439484,-500.0,9.734e-05,2]
[347060272,1735487439494,-500.0,9.734e-05,2]
[347060273,1735487439504,-500.0,9.734e-05,2]
[347060274,1735487439515,-500.0,9.734e-05,2]
[347060275,1735487439525,-500.0,9.734e-05,2]
[347060276,1735487439535,-478.37415165,9.734e-05,2]
[347060277,1735487439545,-500.0,9.734e-05,2]
[347060281,1735487439555,-500.0,9.734e-05,2]
[347060283,1735487439565,-448.2842866,9.734e-05,2]
[347060284,1735487439575,-500.0,9.734e-05,2]
[347060286,1735487439584,-500.0,9.734e-05,2]
[347060288,1735487439658,-500.0,9.734e-05,2]
[347060289,1735487439668,-2108.07,9.734e-05,2]
[347060290,1735487439678,-792.09,9.734e-05,2]
[347060291,1735487439688,-500.0,9.734e-05,2]
[347060292,1735487439697,-500.0,9.734e-05,2]
[347060293,1735487439707,-619.08242091,9.734e-05,2]
[347060294,1735487439717,-307.13185755,9.734e-05,2]
[347060295,1735487439727,-501.86363086,9.734e-05,2]
[347060296,1735487439737,-500.0,9.734e-05,2]
[347060297,1735487439747,-500.0,9.734e-05,2]
[347060298,1735487439759,-500.0,9.734e-05,2]
[347060299,1735487439768,-501.37533478,9.734e-05,2]
[347060300,1735487439778,-500.0,9.734e-05,2]
[347060301,1735487439787,-508.18,9.734e-05,2]
[347060302,1735487439796,-500.0,9.734e-05,2]
[347060303,1735487439805,-500.0,9.734e-05,2]
[347060304,1735487439815,-593.39,9.734e-05,2]
[347060305,1735487439825,-524.21651284,9.734e-05,2]
[347060306,1735487439835,-240.59795355,9.734e-05,2]
[347060307,1735487439848,-500.0,9.734e-05,2]
[347060308,1735487439857,-500.0,9.734e-05,2]
[347060309,1735487439867,-500.0,9.734e-05,2]
[347060310,1735487439877,-611.29046061,9.734e-05,2]
[347060311,1735487439887,-500.0,9.734e-05,2]
[347060312,1735487439896,-500.0,9.734e-05,2]
[347060313,1735487439905,-500.0,9.734e-05,2]
[347060314,1735487439915,-502.26881082,9.734e-05,2]
[347060315,1735487439924,-1091.14,9.734e-05,2]
[347060316,1735487439934,-500.0,9.734e-05,2]
[347060317,1735487439943,-500.0,9.734e-05,2]
[347060318,1735487439952,-500.0,9.734e-05,2]